fUST/lending_fUST_20250506
["ID","MTS","AMOUNT","RATE_DAILY","PERIOD"]
[360025229,1746486639085,-160.0,0.0002399,3]
[360025231,1746486639094,-182.23035355,0.0002399,3]
[360025233,1746486639103,-841.77443764,0.0002399,3]
[360025235,1746486639113,-12607.13495863,0.0002399,3]
[360025237,1746486639122,-160.0,0.0002399,3]
[360025239,1746486639131,-160.0,0.0002399,3]
[360025241,1746486639141,-421.83547488,0.0002399,3]
[360025243,1746486639151,-160.0,0.0002399,3]
[360025245,1746486639160,-5000.0,0.00024,2]
[360025247,1746486639169,-160.0,0.00024,7]
[360025249,1746486639179,-216.28,0.00024,5]
[360025252,1746486639188,-160.0,0.00024,7]
[360025254,1746486639198,-421.83547488,0.00024,7]
[360025256,1746486639207,-823.0,0.00024193,2]
[360025257,1746486639216,-251.42944195,0.00024528,2]
[360025259,1746486639226,-160.1869615,0.00024628,2]
[360025262,1746486639237,-2150.1766019,0.000247,11]
[360025264,1746486639246,-2150.1766019,0.000247,11]
[360025266,1746486639255,-2150.1766019,0.000247,11]
[360025268,1746486639266,-2150.1766019,0.000247,11]
[360025270,1746486639276,-2150.1766019,0.000247,11]
[360025272,1746486639285,-2150.1766019,0.000247,11]
[360025274,1746486639295,-2150.1766019,0.000247,11]
[360025276,1746486639305,-2150.1766019,0.00024728,11]
[360025278,1746486639315,-151.0,0.000249,7]
[360025280,1746486639324,-151.0,0.000249,7]
[360025282,1746486639334,-275.868624,0.000249,7]
[360025284,1746486639344,-275.868624,0.000249,7]
[360025287,1746486639354,-275.868624,0.000249,7]
[360025289,1746486639364,-275.868624,0.000249,7]
[360025290,1746486639374,-41052.95717068,0.000249,2]
[360025293,1746486639386,-6975.66144768,0.000249,2]
[360025297,1746486639414,-2367.88707537,0.000249,2]
[360025299,1746486639425,-9505.74074155,0.000249,2]
[360025422,1746486641050,-160.0,0.00022,7]
[360025424,1746486641059,-160.0,0.0002399,3]
[360025426,1746486641069,-1226.78600054,0.000249,2]
[360025428,1746486641080,-38539.36027632,0.000249,2]
[360025431,1746486641095,-70195.26840006,0.000249,2]
[360025962,1746486646463,-259.91854538,0.000228,2]
[360025963,1746486646473,-160.0,0.00022981,2]
[360025964,1746486646483,-817.51195014,0.000249,2]
[360025977,1746486664548,-152.0,0.00018463,2]
[360025978,1746486671529,-830.00665306,0.00018463,2]
[360025979,1746486690830,-17.99334694,0.00018463,2]
[360025980,1746486690869,-135.19135135,0.00018463,2]
[360025982,1746486697029,-64.9429777,0.00018463,2]
[360025986,1746486713008,-284.76364271,0.00018463,2]
[360025987,1746486715718,-265.00542295,0.00018463,2]
[360025988,1746486718266,-200.0,0.00018463,2]
[360025989,1746486721740,-267.43707725,0.00018463,2]
[360025990,1746486724706,-96.17483185,0.00018463,2]
[360025991,1746486727902,-168.91208258,0.00018363,2]
[360025992,1746486730529,-81.08791742,0.00018363,2]
[360025993,1746486760145,-678.43187989,0.00018363,2]
[360025994,1746486763268,-321.56812011,0.00018363,2]
[360026000,1746486812830,-174.53594813,0.00018363,2]
[360026001,1746486823164,-75.46405187,0.00018363,2]
[360026002,1746486834502,-199.02021691,0.00018363,2]
[360026003,1746486840764,-278.69408022,0.00018363,2]
[360026005,1746486847605,-240.48020269,0.00018363,2]
[360026007,1746486852077,-281.80550018,0.00018363,2]
[360026008,1746486918400,-218.19449982,0.0001846,2]
[360026010,1746486927336,-250.0,0.00018263,2]
[360026011,1746486927372,-73.67272443,0.0001846,2]
[360026012,1746486927406,-176.32727557,0.0001846,2]
[360026013,1746486933035,-166.0,0.0001846,2]
[360026014,1746486993425,-166.0,0.0001846,2]
[360026015,1746486999238,-154.42460809,0.0001846,2]
[360026016,1746487004877,-211.04107581,0.0001846,2]
[360026017,1746487008292,-250.0,0.00018263,2]
[360026018,1746487008328,-7.9738916,0.0001846,2]
[360026019,1746487011534,-118.23314893,0.0001846,2]
[360026020,1746487011570,-101.25074566,0.0001846,2]
[360026023,1746487015179,-69.48977647,0.0001846,2]
[360026025,1746487020006,3989.9982565,0.00017746,2]
[360026026,1746487074130,-211.02632894,0.0001846,2]
[360026027,1746487076876,-257.21772971,0.0001846,2]
[360026028,1746487080828,-180.52612848,0.0001846,2]
[360026029,1746487084012,-153.18469829,0.0001846,2]
[360026030,1746487090480,-198.04511458,0.0001846,2]
[360026031,1746487100448,518.654997,0.00017659,2]
[360026032,1746487113402,360.2656318,0.00017659,2]
[360026033,1746487162884,-250.0,0.0001846,2]
[360026034,1746487162939,-50.0,0.0001846,2]
[360026035,1746487167782,-263.65862462,0.0001846,2]
[360026036,1746487171975,-319.33921232,0.0001846,2]
[360026037,1746487175116,-300.0,0.0001846,2]
[360026038,1746487177817,-67.00216306,0.0001846,2]
[360026039,1746487200119,-250.0,0.0001846,2]
[360026040,1746487236413,-229.72458955,0.0001846,2]
[360026041,1746487239745,-461.79348741,0.0001846,2]
[360026042,1746487243778,-308.48192304,0.0001846,2]
[360026043,1746487309205,-250.0,0.0001836,2]
[360026044,1746487331086,-505.78378737,0.0001846,2]
[360026046,1746487335026,-233.44942206,0.0001846,2]
[360026047,1746487342806,-151.0,0.0001846,2]
[360026049,1746487344565,8643.9799001,0.0001774,2]
[360026050,1746487346889,-109.76679057,0.0001846,2]
[360026051,1746487388421,-161.69278599,0.0001856,2]
[360026052,1746487388455,-161.69278599,0.00018561,2]
[360026053,1746487388490,-151.0,0.0001865,2]
[360026054,1746487388526,-11.61442802,0.00018655,2]
[360026055,1746487428309,-177.71078499,0.0001846,2]
[360026056,1746487432933,-604.75027783,0.0001846,2]
[360026059,1746487435000,-217.53893718,0.0001846,2]
[360026062,1746487601371,-170.74052213,0.00018554,2]
[360026063,1746487601394,-98.78129243,0.00018555,2]
[360026064,1746487614278,-168.49600839,0.00018455,2]
[360026065,1746487617521,-81.50399161,0.00018455,2]
[360026069,1746487669912,5094.74146657,0.00018,2]
[360026127,1746487832367,-901.21870757,0.00018555,2]
[360026130,1746487832377,-300.0,0.00018652,2]
[360026132,1746487832387,-1200.0,0.00018652,2]
[360026134,1746487832396,-6098.21619555,0.00018653,2]
[360026142,1746487832459,-20148.6742553,0.00018653,2]
[360026145,1746487832481,-434.89445479,0.00018653,2]
[360026147,1746487832495,-23318.21509436,0.00018653,2]
[360026149,1746487832506,-500.0,0.00018653,2]
[360026151,1746487832515,-500.0,0.00018653,2]
[360026153,1746487832524,-500.0,0.00018653,2]
[360026157,1746487832534,-500.0,0.00018653,2]
[360026159,1746487832544,-382.99783694,0.00018653,2]
[360026162,1746487832553,-500.0,0.00018653,2]
[360026165,1746487832562,-500.0,0.00018653,2]
[360026168,1746487832571,-500.0,0.00018653,2]
[360026171,1746487832580,-500.0,0.00018653,2]
[360026174,1746487832589,-500.0,0.00018653,2]
[360026177,1746487832598,-500.0,0.00018653,2]
[360026180,1746487832607,-435.25890535,0.00018653,2]
[360026183,1746487832616,-500.0,0.00018653,2]
[360026186,1746487832625,-500.0,0.00018653,2]
[360026187,1746487832635,-518.1220492,0.00018653,2]
[360026188,1746487832644,-500.0,0.00018653,2]
[360026190,1746487832653,-500.0,0.00018653,2]
[360026192,1746487832662,-500.0,0.00018653,2]
[360026194,1746487832671,-500.0,0.00018653,2]
[360026196,1746487832680,-500.0,0.00018653,2]
[360026198,1746487832689,-500.0,0.00018653,2]
[360026200,1746487832698,-500.0,0.00018653,2]
[360026202,1746487832707,-500.0,0.00018653,2]
[360026204,1746487832716,-500.0,0.00018653,2]
[360026205,1746487832726,-500.0,0.00018653,2]
[360026207,1746487832734,-500.0,0.00018653,2]
[360026209,1746487832743,-500.0,0.00018653,2]
[360026210,1746487832752,-500.0,0.00018653,2]
[360026211,1746487832761,-500.0,0.00018653,2]
[360026212,1746487832771,-500.0,0.00018653,2]
[360026213,1746487832966,-331.83960065,0.00018653,2]
[360026214,1746487832976,-500.0,0.00018653,2]
[360026215,1746487832986,-500.0,0.00018653,2]
[360026216,1746487832995,-500.0,0.00018653,2]
[360026217,1746487833004,-500.0,0.00018653,2]
[360026218,1746487833014,-500.0,0.00018653,2]
[360026219,1746487833024,-500.0,0.00018653,2]
[360026220,1746487833034,-433.18396007,0.00018653,2]
[360026221,1746487833043,-500.0,0.00018653,2]
[360026222,1746487833053,-500.0,0.00018653,2]
[360026223,1746487833063,-500.0,0.00018653,2]
[360026224,1746487833073,-500.0,0.00018653,2]
[360026225,1746487833083,-500.0,0.00018653,2]
[360026226,1746487833094,-500.0,0.00018653,2]
[360026227,1746487833104,-500.0,0.00018653,2]
[360026228,1746487833114,-500.0,0.00018653,2]
[360026229,1746487833124,-599.99999999,0.00018653,2]
[360026230,1746487833134,-500.0,0.00018653,2]
[360026231,1746487833143,-500.0,0.00018654,2]
[360026232,1746487833152,-160.0,0.00018655,2]
[360026233,1746487833161,-500.0,0.000187,2]
[360026234,1746487833170,-500.0,0.000187,2]
[360026235,1746487833180,-500.0,0.000187,2]
[360026236,1746487833189,-500.0,0.000187,2]
[360026237,1746487833198,-500.0,0.000187,2]
[360026238,1746487833211,-391.2758727,0.000189,2]
[360026239,1746487833221,-500.0,0.00018928,2]
[360026240,1746487833230,-1821.63498362,0.00018964,2]
[360026241,1746487833243,-5189.38728284,0.00018964,2]
[360026290,1746487838541,-1000.0,0.00018964,2]
[360026295,1746487838582,-1988.97773354,0.00018964,2]
[360026297,1746487838591,-300.0,0.000195,2]
[360026299,1746487838600,-476.29305807,0.00019706,2]
[360026645,1746487841532,-1530.17776597,0.00019706,2]
[360026648,1746487841542,-152.0,0.00019739,2]
[360026651,1746487841552,-8138.31479243,0.00020094,2]
[360026654,1746487841563,-16761.68520757,0.00020094,2]
[360026657,1746487841573,-420.0,0.00020338,2]
[360026660,1746487841582,-587.0,0.00022176,2]
[360026663,1746487841591,-218.43111627,0.00022273,2]
[360026666,1746487841600,-207.4,0.00022273,2]
[360026669,1746487841609,-203.812573,0.00022696,2]
[360026672,1746487841618,-215.0738,0.00023642,2]
[360026675,1746487841628,-209.921,0.000239,5]
[360026678,1746487841637,-391.2758727,0.000239,2]
[360026682,1746487841650,-1005.18646524,0.00024179,2]
[360026684,1746487841659,-1000.0,0.00024179,2]
[360026687,1746487841668,-1000.0,0.00024179,2]
[360026689,1746487841678,-1000.0,0.00024179,2]
[360026692,1746487841687,-1000.0,0.00024179,2]
[360026694,1746487841696,-823.0,0.00024181,2]
[360026697,1746487841707,-1576.79617492,0.000246,11]
[360026700,1746487841717,-1576.79617472,0.000246,11]
[360026702,1746487841726,-1576.79617472,0.000246,11]
[360026705,1746487841736,-1576.79617472,0.000246,11]
[360026707,1746487841746,-1576.79617472,0.000246,11]
[360026710,1746487841755,-1576.79617472,0.000246,11]
[360026712,1746487841765,-1576.79617472,0.000246,11]
[360026715,1746487841774,-1576.79617472,0.00024728,11]
[360026717,1746487841784,-160.0,0.0002489,2]
[360026720,1746487841793,-44181.5726166,0.000249,2]
[360026723,1746487841803,-861.76,0.0002499,3]
[360026726,1746487841812,-5000.0,0.00025,2]
[360026728,1746487841822,-151.0,0.00025,2]
[360026731,1746487841831,-4664.0,0.00025,2]
[360026734,1746487841842,-500.0,0.00025,2]
[360026736,1746487841852,-500.0,0.00025,2]
[360026740,1746487841861,-500.0,0.00025,2]
[360026742,1746487841872,-500.0,0.00025,2]
[360026745,1746487841882,-500.0,0.00025,2]
[360026747,1746487841891,-207.4,0.00025011,2]
[360026750,1746487841901,-500.0,0.00025255,2]
[360026753,1746487841910,-500.0,0.00025255,2]
[360026756,1746487841920,-500.0,0.00025255,2]
[360026758,1746487841930,-500.0,0.00025255,2]
[360026761,1746487841939,-500.0,0.00025255,2]
[360026764,1746487841949,-1576.79617472,0.00025417,13]
[360026803,1746487842175,-3274.39635853,0.000259,2]
[360026806,1746487842185,-287.25,0.0002597,3]
[360026808,1746487842194,-44181.5726166,0.0002599,2]
[360026811,1746487842206,-5000.0,0.00026,2]
[360026814,1746487842216,-430.299178,0.00026,7]
[360026817,1746487842226,-430.299178,0.00026,7]
[360026820,1746487842236,-160.0,0.00026,10]
[360026822,1746487842245,-500.0,0.00026,2]
[360026824,1746487842255,-160.0,0.00026,10]
[360026826,1746487842264,-182.23035355,0.00026,10]
[360026828,1746487842274,-12607.13495863,0.00026,10]
[360026830,1746487842283,-841.77443764,0.00026,10]
[360026832,1746487842293,-160.0,0.0002601,30]
[360026834,1746487842303,-151.0,0.0002601,7]
[360026836,1746487842312,-185.817685,0.0002601,7]
[360026838,1746487842321,-151.0,0.0002601,7]
[360026840,1746487842331,-151.0,0.0002601,7]
[360026842,1746487842340,-151.0,0.0002601,7]
[360026844,1746487842350,-151.0,0.0002601,7]
[360026846,1746487842360,-460.786927,0.0002601,7]
[360026848,1746487842370,-460.786927,0.0002601,7]
[360026850,1746487842379,-151.0,0.0002601,7]
[360026852,1746487842389,-160.0,0.0002601,30]
[360026854,1746487842398,-182.23035355,0.0002601,30]
[360026856,1746487842407,-10938.88289657,0.0002601,30]
[360026978,1746487843519,-560.47060669,0.0002601,30]
[360026980,1746487843533,-1107.78145537,0.0002601,30]
[360026981,1746487843542,-841.77443764,0.0002601,30]
[360026982,1746487843551,-164.66234041,0.0002604,2]
[360026983,1746487843560,-1576.79617472,0.00026107,14]
[360026984,1746487843569,-500.0,0.00026174,2]
[360026985,1746487843578,-303.51973382,0.00026358,2]
[360027154,1746487846539,-160.0,0.00026,10]
[360027155,1746487846550,-160.0,0.0002601,30]
[360027156,1746487846559,-313.60000015,0.00026358,2]
[360027160,1746487904186,-926.82625169,0.00018455,2]
[360027161,1746487920831,-73.17374831,0.00018455,2]
[360027162,1746487920866,-85.712264,0.00018455,2]
[360027164,1746487923473,-353.60337528,0.00018455,2]
[360027165,1746487928285,-194.71736297,0.00018455,2]
[360027166,1746487936194,-200.0,0.00018455,2]
[360027167,1746487943840,-266.6972003,0.00018455,2]
[360027168,1746487947893,-500.0,0.00018455,2]
[360027169,1746487952880,-266.6972003,0.00018455,2]
[360027170,1746487962221,-158.88601231,0.00018455,2]
[360027171,1746487970760,-158.88601231,0.00018455,2]
[360027172,1746487976341,-300.0,0.00018455,2]
[360027173,1746487979810,-658.32411276,0.00018455,2]
[360027174,1746487986088,-255.5583884,0.00018455,2]
[360027175,1746487989432,-221.67626158,0.00018455,2]
[360027176,1746487994183,-79.59632633,0.00018455,2]
[360027177,1746487994218,-293.4395794,0.00018455,2]
[360027178,1746488002987,-298.98507131,0.00018455,2]
[360027179,1746488006745,-165.97880921,0.00018455,2]
[360027180,1746488012402,-177.48716279,0.00018455,2]
[360027181,1746488015528,-64.10937729,0.00018455,2]
[360027182,1746488065826,-227.05020107,0.00018355,2]
[360027183,1746488070253,-222.38958748,0.00018355,2]
[360027184,1746488074386,-300.0,0.00018355,2]
[360027186,1746488082022,-250.56021145,0.00018355,2]
[360027189,1746488138955,-168.2783586,0.00018355,2]
[360027190,1746488144262,-406.77885473,0.00018355,2]
[360027191,1746488149640,-159.21582044,0.00018355,2]
[360027192,1746488153457,-254.77831283,0.00018355,2]
[360027193,1746488156197,-10.9486534,0.00018355,2]
[360027197,1746488366240,-241.95997435,0.0001845,2]
[360027198,1746488370746,-252.90862775,0.0001845,2]
[360027199,1746488374488,-152.76586549,0.0001845,2]
[360027200,1746488376475,359.11882,0.00017648,2]
[360027201,1746488380203,-119.06273271,0.0001845,2]
[360027204,1746488677935,-271.19063156,0.0001845,2]
[360027205,1746488681026,-6.79797754,0.0001845,2]
[360027209,1746488903574,-153.20202246,0.00018452,2]
[360027210,1746488906305,-124.78658664,0.00018452,2]
[360027213,1746488975697,10000.0,0.00017643,2]
[360027269,1746489032692,-277.9886091,0.00018538,2]
[360027271,1746489032702,-1000.0,0.0001855,2]
[360027272,1746489032711,-151.0,0.00018634,2]
[360027273,1746489032721,-54.95729028,0.00018641,2]
[360027274,1746489032733,-245.04270972,0.00018641,2]
[360027275,1746489032742,-300.0,0.00018642,2]
[360027276,1746489032751,-300.0,0.00018642,2]
[360027277,1746489032762,-300.0,0.00018642,2]
[360027278,1746489032771,-300.0,0.00018642,2]
[360027279,1746489032781,-1200.0,0.00018642,2]
[360027280,1746489032791,-245.36918048,0.00018643,2]
[360027281,1746489032800,-500.0,0.00018643,2]
[360027282,1746489032810,-500.0,0.00018643,2]
[360027283,1746489032820,-500.0,0.00018643,2]
[360027284,1746489032829,-504.32050188,0.00018643,2]
[360027285,1746489032839,-500.0,0.00018643,2]
[360027286,1746489032848,-500.0,0.00018643,2]
[360027287,1746489032858,-339.09869417,0.00018643,2]
[360027288,1746489032868,-500.0,0.00018643,2]
[360027289,1746489033061,-500.0,0.00018643,2]
[360027290,1746489033072,-500.0,0.00018643,2]
[360027291,1746489033082,-500.0,0.00018643,2]
[360027292,1746489033093,-500.0,0.00018643,2]
[360027293,1746489033103,-500.0,0.00018643,2]
[360027294,1746489033114,-199.22187345,0.00018643,2]
[360027295,1746489033124,-500.0,0.00018643,2]
[360027296,1746489033134,-500.0,0.00018643,2]
[360027297,1746489033144,-500.0,0.00018643,2]
[360027298,1746489033154,-500.0,0.00018643,2]
[360027299,1746489033164,-500.0,0.00018643,2]
[360027300,1746489033174,-222.4039879,0.00018643,2]
[360027301,1746489033187,-277.5960121,0.00018643,2]
[360027302,1746489033198,-206.64432332,0.00018643,2]
[360027303,1746489033209,-500.0,0.00018643,2]
[360027304,1746489033219,-500.0,0.00018643,2]
[360027305,1746489033229,-500.0,0.00018643,2]
[360027306,1746489033240,-500.0,0.00018643,2]
[360027307,1746489033250,-500.0,0.00018643,2]
[360027308,1746489033260,-500.0,0.00018643,2]
[360027309,1746489033270,-500.0,0.00018643,2]
[360027310,1746489033280,-500.0,0.00018643,2]
[360027311,1746489033290,-500.0,0.00018643,2]
[360027312,1746489033299,-500.0,0.00018643,2]
[360027313,1746489033309,-476.61548783,0.00018643,2]
[360027314,1746489033318,-472.02757967,0.00018643,2]
[360027315,1746489033328,-500.0,0.00018643,2]
[360027316,1746489033338,-194.69790933,0.00018643,2]
[360027317,1746489033348,-448.20619667,0.00018643,2]
[360027318,1746489033357,-500.0,0.00018643,2]
[360027319,1746489033367,-500.0,0.00018643,2]
[360027320,1746489033377,-500.0,0.00018643,2]
[360027321,1746489033387,-500.0,0.00018643,2]
[360027322,1746489033396,-500.0,0.00018643,2]
[360027323,1746489033406,-500.0,0.00018643,2]
[360027324,1746489033416,-500.0,0.00018643,2]
[360027325,1746489033427,-500.0,0.00018643,2]
[360027326,1746489033437,-500.0,0.00018643,2]
[360027327,1746489033447,-500.0,0.00018643,2]
[360027328,1746489033456,-500.0,0.00018643,2]
[360027329,1746489033469,-470.66443234,0.00018643,2]
[360027330,1746489033478,-500.0,0.00018643,2]
[360027331,1746489033487,-500.0,0.00018643,2]
[360027332,1746489033497,-500.0,0.00018643,2]
[360027333,1746489033507,-500.0,0.00018643,2]
[360027334,1746489033516,-500.0,0.00018643,2]
[360027335,1746489033526,-296.69942276,0.00018643,2]
[360027336,1746489033535,-500.0,0.00018643,2]
[360027337,1746489033546,-179.63658191,0.00018643,2]
[360027338,1746489033558,-320.36341809,0.00018643,2]
[360027339,1746489033567,-292.99686101,0.00018643,2]
[360027340,1746489033577,-500.0,0.00018643,2]
[360027341,1746489033587,-500.0,0.00018643,2]
[360027342,1746489033597,-500.0,0.00018643,2]
[360027343,1746489033606,-500.0,0.00018643,2]
[360027344,1746489033617,-500.0,0.00018643,2]
[360027345,1746489033626,-500.0,0.00018643,2]
[360027346,1746489033636,-500.0,0.00018643,2]
[360027347,1746489033645,-500.0,0.00018643,2]
[360027348,1746489033655,-500.0,0.00018643,2]
[360027349,1746489033664,-500.0,0.00018643,2]
[360027350,1746489033674,-500.0,0.00018643,2]
[360027351,1746489033683,-500.0,0.00018643,2]
[360027352,1746489033692,-500.0,0.00018643,2]
[360027353,1746489033702,-500.0,0.00018643,2]
[360027354,1746489033711,-500.0,0.00018643,2]
[360027355,1746489033721,-500.0,0.00018643,2]
[360027356,1746489033731,-500.0,0.00018643,2]
[360027357,1746489033740,-649.99999999,0.00018643,2]
[360027358,1746489033750,-6594.8971224,0.00018644,2]
[360027359,1746489033762,-43405.1028776,0.00018644,2]
[360027360,1746489033771,-220.93177949,0.00018652,2]
[360027361,1746489033781,-500.0,0.000187,2]
[360027362,1746489033791,-500.0,0.000187,2]
[360027363,1746489033800,-500.0,0.000187,2]
[360027364,1746489033809,-500.0,0.000187,2]
[360027365,1746489033819,-500.0,0.000187,2]
[360027366,1746489033828,-486.97804824,0.000187,2]
[360027367,1746489033838,-500.0,0.000187,2]
[360027368,1746489033847,-500.0,0.000187,2]
[360027369,1746489033857,-500.0,0.000187,2]
[360027370,1746489033866,-152.0,0.00018878,2]
[360027371,1746489033876,-1746.11528878,0.000189,2]
[360027372,1746489033886,-151.0,0.00019178,2]
[360027373,1746489033895,-175.311571,0.00019178,2]
[360027374,1746489033905,-163.68406202,0.00019233,2]
[360027375,1746489033914,-192.0,0.00019303,2]
[360027376,1746489033923,-428.1117231,0.00019388,2]
[360027377,1746489033933,-192.76610453,0.0002,2]
[360027378,1746489033942,-305.91144229,0.00020314,2]
[360027379,1746489033951,-344.0,0.00020326,2]
[360027380,1746489033961,-420.0,0.00020327,2]
[360027381,1746489033970,-420.0,0.00020327,2]
[360027382,1746489033979,-420.0,0.00020327,2]
[360027383,1746489033989,-1680.0,0.00020426,2]
[360027384,1746489033998,-160.0,0.00021917,2]
[360027385,1746489034007,-300.0,0.00022165,2]
[360027386,1746489034016,-587.0,0.00022165,2]
[360027387,1746489034026,-194.0,0.00022165,2]
[360027388,1746489034035,-2351.0,0.00022381,2]
[360027389,1746489034044,-160.0,0.00022432,2]
[360027390,1746489034055,-175.311571,0.00022603,2]
[360027391,1746489034064,-500.0,0.00023228,2]
[360027392,1746489034073,-500.0,0.00023686,2]
[360027393,1746489034083,-500.0,0.00023686,2]
[360027394,1746489034093,-500.0,0.00023686,2]
[360027395,1746489034102,-500.0,0.00023686,2]
[360027396,1746489034112,-502.92964946,0.00023686,2]
[360027397,1746489034121,-255.76072221,0.00023686,2]
[360027398,1746489034130,-167.937,0.00023747,4]
[360027399,1746489034139,-1746.11528878,0.000239,2]
[360027400,1746489034149,-22237.30772973,0.0002399,2]
[360027401,1746489034158,-150.59382287,0.00024,3]
[360027402,1746489034167,-823.0,0.00024168,2]
[360027403,1746489034177,-1000.0,0.00024179,2]
[360027404,1746489034186,-500.0,0.00024179,2]
[360027405,1746489034195,-1000.0,0.00024179,2]
[360027406,1746489034204,-1000.0,0.00024179,2]
[360027407,1746489034214,-1000.0,0.00024179,2]
[360027408,1746489034223,-1000.0,0.00024179,2]
[360027409,1746489034233,-1024.4438534,0.00024179,2]
[360027410,1746489034242,-1000.0,0.00024179,2]
[360027411,1746489034252,-2654.00996472,0.000244,2]
[360027412,1746489034261,-1128.68539538,0.000244,2]
[360027413,1746489034271,-160.0,0.00024499,3]
[360027414,1746489034280,-160.0,0.00024499,3]
[360027415,1746489034290,-16296.32141749,0.00024499,3]
[360027416,1746489034299,-182.23035355,0.000245,3]
[360027417,1746489034308,-12607.13495863,0.000245,3]
[360027418,1746489034318,-841.77443764,0.000245,3]
[360027419,1746489034328,-197780.73770406,0.000245,2]
[360027420,1746489034337,-295222.25757587,0.000245,2]
[360027422,1746489038546,-14819.81345204,0.00024497,2]
[360027423,1746489038556,-74777.74242413,0.000245,2]
[360027424,1746489038566,-1200.0,0.00024523,2]
[360027425,1746489038576,-2654.00996471,0.00024575,2]
[360027426,1746489038586,-1159.95295526,0.000246,11]
[360027427,1746489038596,-1159.95295509,0.000246,11]
[360027428,1746489038605,-1159.95295509,0.000246,11]
[360027429,1746489038615,-1159.95295509,0.000246,11]
[360027431,1746489038624,-1159.95295509,0.000246,11]
[360027433,1746489038634,-1159.95295509,0.000246,11]
[360027435,1746489038643,-1159.95295509,0.000246,11]
[360027437,1746489038652,-1159.95295509,0.00024728,11]
[360027439,1746489038662,-2654.00996471,0.0002475,2]
[360027441,1746489038671,-250.0,0.0002478,2]
[360027443,1746489038680,-301.05941528,0.00024873,2]
[360027445,1746489038690,-218.05921073,0.00024873,2]
[360027447,1746489038700,-500.0,0.00024873,2]
[360027449,1746489038709,-500.0,0.00024873,2]
[360027451,1746489038719,-500.0,0.00024873,2]
[360027453,1746489038728,-500.0,0.00024873,2]
[360027455,1746489038737,-533.1479347,0.00024873,2]
[360027457,1746489038746,-500.0,0.00024873,2]
[360027459,1746489038755,-500.0,0.00024873,2]
[360027461,1746489038765,-522.78857111,0.00024873,2]
[360027463,1746489038774,-500.0,0.00024873,2]
[360027465,1746489038783,-209.0724683,0.00024873,2]
[360027467,1746489038793,-500.0,0.00024873,2]
[360027469,1746489038802,-500.0,0.00024873,2]
[360027470,1746489038811,-500.0,0.00024873,2]
[360027471,1746489038820,-501.60308311,0.00024873,2]
[360027472,1746489038829,-500.0,0.00024873,2]
[360027474,1746489038839,-500.0,0.00024873,2]
[360027476,1746489038848,-500.0,0.00024873,2]
[360027478,1746489038857,-600.58789888,0.00024873,2]
[360027480,1746489038866,-500.0,0.00024873,2]
[360027482,1746489038876,-500.0,0.00024873,2]
[360027484,1746489038885,-607.92580081,0.00024873,2]
[360027486,1746489038895,-500.0,0.00024873,2]
[360027488,1746489038904,-500.0,0.00024873,2]
[360027490,1746489038913,-150.0,0.00024873,2]
[360027491,1746489038922,-500.0,0.00024873,2]
[360027492,1746489038931,-500.0,0.00024873,2]
[360027493,1746489038940,-854.18,0.0002489,3]
[360027494,1746489038949,-427.09,0.0002489,3]
[360027495,1746489038958,-213.54,0.0002489,3]
[360027496,1746489038968,-640.65,0.0002489,3]
[360027497,1746489038977,-11069.51429062,0.000249,2]
[360027498,1746489038996,-3647.92052878,0.000249,2]
[360027831,1746489043788,-1000.0,0.0001845,2]